bitfinex/quotes_ETHUSD_20241223
["timestamp","ask_amount","ask_price","bid_price","bid_amount"]
[1734949831609,2.98973,3344.8,3344.5,0.8231]
[1734949831813,2.98926,3345.3,3344.5,0.8231]
[1734949831988,2.98962,3344.9,3344.5,0.8231]
[1734949832389,2.98944,3345.1,3344.5,0.8231]
[1734949832828,2.98969,3344.9,3344.5,0.8231]
[1734949833390,3.0,3344.8,3344.5,0.8231]
[1734949833824,5.98976,3344.8,3344.5,0.8231]
[1734949834742,2.99009,3344.4,3343.6,0.8018]
[1734949835822,2.98991,3344.6,3343.6,0.8018]
[1734949836131,2.99003,3344.5,3343.6,0.8018]
[1734949836499,2.99024,3344.3,3343.6,0.8018]
[1734949836712,2.99045,3344.0,3343.6,0.8018]
[1734949837034,2.99052,3343.9,3343.6,0.8018]
[1734949837238,3.0,3344.5,3343.6,0.8018]
[1734949837438,3.75674,3344.8,3343.1,0.8109]
[1734949837439,3.0,3343.9,3343.1,0.8109]
[1734949837735,2.99109,3343.3,3343.1,0.8109]
[1734949838245,2.99114,3343.2,3343.1,0.8109]
[1734949838442,2.99114,3343.2,3341.1,3.05501083]
[1734949838443,0.55,3343.9,3342.2,0.8112]
[1734949838612,3.0,3342.8,3341.8,0.8261]
[1734949838818,0.55,3343.2,3341.8,0.8261]
[1734949839014,2.99188,3342.4,3341.8,0.8261]
[1734949839506,0.55,3343.2,3341.8,0.8261]
[1734949839700,2.99195,3342.3,3341.8,0.8261]
[1734949840245,2.99204,3342.2,3341.8,0.8261]
[1734949841151,3.0,3342.5,3341.8,0.8261]
[1734949841324,3.0,3342.9,3341.8,0.8261]
[1734949841515,2.99145,3342.9,3341.8,0.8261]
[1734949841716,3.0,3342.8,3341.8,0.8261]
[1734949842149,3.0,3343.1,3341.8,0.8261]
[1734949842324,2.9915,3342.9,3341.8,0.8261]
[1734949842519,2.9915,3342.9,3340.9,0.60168211]
[1734949842520,3.0,3342.8,3342.2,0.802]
[1734949842714,2.99108,3343.3,3342.2,0.802]
[1734949842954,3.09928878,3344.1,3342.4,0.7758]
[1734949843141,2.9906,3343.8,3342.4,0.7758]
[1734949843344,2.99088,3343.5,3342.4,0.7758]
[1734949843864,2.99052,3343.9,3342.4,0.7758]
[1734949844067,2.9906,3343.8,3342.4,0.7758]
[1734949844268,0.7946,3344.4,3342.4,0.7758]
[1734949844269,2.99134,3343.0,3342.4,0.7758]
[1734949844764,3.0,3344.2,3342.4,0.7758]
[1734949844966,2.99117,3343.2,3342.4,1.16943804]
[1734949845168,2.99117,3343.2,3342.4,0.7758]
[1734949845869,2.99088,3343.5,3342.4,0.7758]
[1734949846068,3.0,3343.4,3342.4,0.7758]
[1734949846767,5.99097,3343.4,3342.4,0.7758]
[1734949847272,2.99107,3343.3,3342.4,0.7758]
[1734949847632,2.99119,3343.2,3342.4,0.7758]
[1734949847862,3.0,3343.6,3342.4,0.7758]
[1734949848063,2.99143,3342.9,3342.4,0.7758]
[1734949848264,3.0,3343.3,3342.4,0.7758]
[1734949848463,5.99052,3343.9,3342.4,0.7758]
[1734949848874,3.0,3343.5,3342.4,0.7758]
[1734949849072,2.99114,3343.3,3342.4,0.7758]
[1734949849278,2.99115,3343.2,3342.5,0.376783]
[1734949849432,2.99115,3343.2,3342.4,0.7758]
[1734949849945,3.0,3343.2,3342.4,0.7758]
[1734949850151,2.99171,3342.6,3342.4,0.7758]
[1734949850345,2.9917,3342.6,3342.4,0.7758]
[1734949850558,3.0,3343.0,3342.4,0.7758]
[1734949850744,2.99177,3342.5,3342.4,0.7758]
[1734949851140,6.54204,3342.2,3342.1,0.1684704]
[1734949851351,5.99204,3342.2,3342.1,0.1684704]
[1734949856497,5.99204,3342.2,3342.1,4e-07]
[1734949856719,6.54204,3342.2,3342.1,4e-07]
[1734949858386,0.7501,3341.6,3340.3,0.8286]
[1734949858550,3.54266,3341.5,3340.3,3.86193637]
[1734949858753,3.0,3341.4,3340.3,3.86193637]
[1734949859072,3.0,3340.3,3340.0,90.0]
[1734949859396,2.99392,3340.1,3340.0,90.0]
[1734949859543,2.99392,3340.1,3340.0,89.95]
[1734949859740,2.99376,3340.3,3340.0,89.95]
[1734949859946,3.0,3340.5,3340.0,89.95]
[1734949860290,0.7501,3340.9,3340.0,89.95]
[1734949860291,2.99371,3340.4,3340.0,89.95]
[1734949860442,0.55,3340.6,3340.0,89.95]
[1734949860641,3.0,3340.3,3340.0,89.95]
[1734949860857,3.0,3340.7,3340.1,0.7998]
[1734949861080,3.77011,3341.3,3340.1,0.7998]
[1734949861081,2.993,3341.2,3340.2,3.03333637]
[1734949861292,3.0,3341.1,3340.2,3.03333637]
[1734949861450,3.0,3341.5,3340.3,0.7998]
[1734949861650,2.9923,3341.9,3340.4,0.7998]
[1734949861846,2.99304,3341.1,3340.4,0.7998]
[1734949862047,2.99309,3341.1,3340.5,0.38331364]
[1734949862388,2.99317,3341.0,3340.5,0.38331364]
[1734949862687,2.99317,3341.0,3340.4,0.7998]
[1734949862891,2.99328,3340.9,3340.4,0.7998]
[1734949863062,5.99306,3341.1,3340.1,0.7579]
[1734949863383,3.55,3341.0,3340.1,0.7579]
[1734949863583,2.9937,3340.4,3340.1,0.7579]
[1734949863790,3.0,3341.0,3340.1,0.7579]
[1734949864090,5.99392,3340.1,3340.0,89.95]
[1734949867185,0.8226,3340.9,3340.0,89.95]
[1734949867573,3.0,3340.2,3340.0,89.95]
[1734949867775,2.99357,3340.5,3340.0,89.95]
[1734949867985,3.0,3340.2,3340.0,89.95]
[1734949868485,3.0,3340.1,3340.0,89.95]
[1734949868663,2.99384,3340.2,3340.0,89.95]
[1734949869265,0.55,3340.8,3340.0,91.96733119]
[1734949869467,2.99346,3340.7,3340.0,91.96733119]
[1734949869705,0.8259,3341.3,3340.0,91.96733119]
[1734949869905,2.99274,3341.5,3340.1,0.7623]
[1734949870073,2.99321,3340.9,3340.1,0.7623]
[1734949870389,0.8259,3341.7,3340.2,3.03333637]
[1734949870555,0.8259,3341.7,3340.1,0.7623]
[1734949870890,2.99332,3340.8,3340.1,0.7623]
[1734949871084,0.55,3341.1,3340.1,0.7623]
[1734949871287,2.9935,3340.6,3340.1,0.7623]
[1734949871590,2.99331,3340.8,3340.1,0.7623]
[1734949871758,3.0,3340.6,3340.1,0.7623]
[1734949872090,0.55,3341.2,3340.1,3.79563637]
[1734949872393,0.39747768,3342.3,3340.1,3.79563637]
[1734949872394,3.0,3340.9,3340.1,3.79563637]
[1734949872566,2.99314,3341.0,3340.1,3.79563637]
[1734949872969,3.0,3340.9,3340.1,3.79563637]
[1734949873688,2.99337,3340.8,3340.1,3.79563637]
[1734949873869,2.99323,3340.9,3340.1,3.79563637]
[1734949874071,2.99323,3340.9,3340.1,0.7623]
[1734949874267,3.0,3340.8,3340.1,0.7623]
[1734949874797,3.0,3340.3,3340.0,89.95]
[1734949874994,5.99392,3340.1,3340.0,89.95]
[1734949875567,0.8279,3340.8,3340.0,89.95]
[1734949875773,3.0,3340.5,3340.0,89.95]
[1734949875972,0.785,3341.2,3340.0,89.95]
[1734949875973,2.9935,3340.6,3340.0,89.95]
[1734949876175,3.0,3340.5,3340.0,89.95]
[1734949876584,2.99342,3340.7,3340.0,92.98333637]
[1734949876801,3.0,3341.0,3340.0,89.95]
[1734949876978,2.9935,3340.6,3340.0,89.95]
[1734949877410,5.99311,3341.0,3340.0,89.95]
[1734949877411,3.0,3340.5,3340.0,89.95]
[1734949878191,3.0,3340.8,3340.0,89.95]
[1734949878392,2.99365,3340.5,3340.0,89.95]
[1734949879469,3.0,3340.4,3340.0,89.95]
[1734949879665,3.0,3340.2,3340.0,89.95]
[1734949880087,3.0,3340.6,3340.0,89.95]
[1734949880478,3.0,3340.1,3340.0,89.95]
[1734949880693,5.99392,3340.1,3340.0,89.95]
[1734949881305,6.54392,3340.1,3340.0,82.46495]
[1734949881609,10.47212,3340.1,3340.0,75.5375516]
[1734949881837,10.47212,3340.1,3340.0,73.913306]
[1734949881986,10.47212,3340.1,3340.0,65.91143881]
[1734949882186,10.47212,3340.1,3340.0,61.85082481]
[1734949882187,10.72211732,3340.1,3340.0,61.85082481]
[1734949882400,10.72211732,3340.1,3340.0,61.30686781]
[1734949882606,10.47212,3340.1,3340.0,56.81583781]
[1734949883115,10.72211732,3340.1,3340.0,54.6424378]
[1734949883290,10.72211732,3340.1,3340.0,53.6655378]
[1734949883491,10.97211732,3340.1,3340.0,53.6655378]
[1734949883830,10.97211732,3340.1,3340.0,45.46558892]
[1734949884127,10.72212,3340.1,3340.0,44.54196104]
[1734949884635,10.47212,3340.1,3340.0,38.55392104]
[1734949884940,14.19126653,3340.1,3340.0,38.55392104]
[1734949885234,11.04526653,3340.1,3340.0,38.55392104]
[1734949885586,14.44126385,3340.1,3340.0,6.06627104]
[1734949885788,6.54499,3338.9,3338.8,0.1684704]
[1734949886040,2.99571,3338.1,3338.0,0.5]
[1734949886245,5.99571,3338.1,3338.0,0.5]
[1734949887452,6.54571,3338.1,3338.0,0.5]
[1734949888166,3.55,3338.1,3336.8,0.7832]
[1734949888473,2.99636,3337.4,3336.8,0.7832]
[1734949888747,3.0,3337.5,3336.8,0.7832]
[1734949888748,3.0,3337.7,3336.8,0.7832]
[1734949888912,2.9966,3337.2,3336.8,0.7832]
[1734949889113,0.55,3337.4,3336.8,0.7832]
[1734949890148,2.99616,3337.6,3336.0,0.00749]
[1734949890149,3.0,3336.8,3336.1,0.7506]
[1734949890351,3.0,3336.5,3336.1,0.7506]
[1734949890759,3.55,3336.8,3336.1,0.7506]
[1734949891054,0.55,3336.8,3336.1,0.7506]
[1734949891355,3.0,3336.4,3336.1,0.7506]
[1734949891537,2.99698,3336.7,3336.1,0.7506]
[1734949891743,3.0,3336.5,3336.1,0.7506]
[1734949891949,6.54688,3336.9,3336.1,0.7506]
[1734949892146,3.55,3336.9,3336.1,0.7506]
[1734949892337,5.99625,3337.5,3336.1,0.7506]
[1734949892532,0.55,3337.4,3336.1,0.7506]
[1734949892750,3.55,3337.1,3336.1,0.7506]
[1734949892946,3.0,3336.9,3336.1,1.126182]
[1734949893269,0.55,3337.1,3336.1,0.7506]
[1734949893476,3.0,3337.0,3336.1,0.7506]
[1734949893756,2.48954282,3338.3,3336.3,2.99731]
[1734949893757,3.54618,3337.6,3336.3,2.99731]
[1734949893965,3.0,3337.1,3336.2,0.7961]
[1734949894328,0.55,3337.6,3336.3,3.75781]
[1734949894523,3.0,3337.5,3337.2,0.7605]
[1734949894720,2.99603,3337.8,3337.2,0.7605]
[1734949895156,0.7514,3338.2,3337.2,0.7605]
[1734949895362,2.99643,3337.3,3337.2,0.0082154]
[1734949895967,5.99643,3337.3,3337.2,0.0082154]
[1734949896258,6.54643,3337.3,3337.2,0.0082154]
[1734949896623,3.55,3337.4,3337.2,0.0082154]
[1734949896836,2.99643,3337.3,3337.2,0.0082154]
[1734949897039,5.99643,3337.3,3337.2,0.0082154]
[1734949897472,0.8216,3338.4,3337.2,0.7719154]
[1734949897672,2.996,3337.8,3337.2,0.7719154]
[1734949897876,2.99598,3337.9,3337.2,0.7719154]
[1734949898049,0.8216,3338.4,3337.2,0.0082154]
[1734949898562,2.99643,3337.3,3337.2,0.0082154]
[1734949898738,5.99643,3337.3,3337.2,0.0082154]
[1734949899139,3.0,3337.5,3337.2,0.0082154]
[1734949899341,3.0,3337.6,3337.2,0.0082154]
[1734949899563,3.55,3337.8,3337.2,0.0082154]
[1734949899740,3.0,3338.1,3337.3,0.8242]
[1734949900172,0.8216,3338.4,3337.3,0.8242]
[1734949900173,3.0,3338.0,3337.3,0.8242]
[1734949900374,3.0,3337.7,3337.3,0.8324154]
[1734949900747,3.0,3337.9,3337.3,0.8324154]
[1734949900940,3.0,3337.6,3337.3,0.8324154]
[1734949901142,2.9962,3337.6,3337.3,0.8324154]
[1734949901378,3.0,3337.5,3337.3,0.8324154]
[1734949901677,3.0,3337.7,3337.3,0.8324154]
[1734949901872,3.0,3338.3,3337.3,0.8324154]
[1734949901873,2.99618,3337.6,3337.3,0.8324154]
[1734949902079,0.8216,3338.4,3337.3,0.8324154]
[1734949902248,3.55,3338.2,3337.3,0.8324154]
[1734949902441,0.55,3338.2,3337.3,0.8324154]
[1734949902642,2.99599,3337.8,3337.3,0.8324154]
[1734949903037,3.0,3337.7,3337.3,0.8324154]
[1734949903239,0.8181,3338.1,3337.3,0.8324154]
[1734949903572,2.99618,3337.6,3337.3,0.8324154]
[1734949903973,3.0,3337.5,3337.3,0.8324154]
[1734949904371,5.99629,3337.5,3337.3,0.0082154]
[1734949904573,6.54634,3337.4,3337.3,0.0082154]
[1734949905748,7.37284,3337.4,3337.3,0.0082154]
[1734949906562,6.54634,3337.4,3337.3,0.0082154]
[1734949908146,0.55,3337.9,3337.3,0.0082154]
[1734949908351,2.99625,3337.5,3337.3,0.0082154]
[1734949908767,2.99634,3337.4,3337.3,0.0082154]
[1734949909585,6.54634,3337.4,3337.3,0.0082154]
[1734949911391,7.35124,3337.4,3337.3,0.0082154]
[1734949911700,6.54634,3337.4,3337.3,0.0082154]
[1734949912758,3.0,3337.7,3337.3,0.0082154]
[1734949912971,3.0,3337.5,3337.3,0.0082154]
[1734949913880,5.99634,3337.4,3337.3,0.0082154]
[1734949914672,0.8192,3338.1,3337.3,0.0082154]
[1734949914673,3.0,3337.5,3337.3,0.0082154]
[1734949915183,5.99631,3337.5,3337.3,0.0082154]
[1734949915679,3.0,3337.6,3337.3,0.0082154]
[1734949915886,3.0,3337.5,3337.3,0.0082154]
[1734949917315,5.99634,3337.4,3337.3,0.0082154]
[1734949919505,6.54634,3337.4,3337.3,0.0082154]
[1734949923003,5.48572282,3337.6,3337.3,0.0082154]
[1734949923199,2.48954282,3337.6,3337.3,0.0082154]
[1734949923403,2.99634,3337.4,3337.3,0.0082154]
[1734949923718,5.48954282,3337.7,3337.4,0.8226]
[1734949923719,2.48954282,3337.7,3337.4,0.8226]
[1734949924237,2.99616,3337.6,3337.4,0.8226]
[1734949924581,2.99616,3337.6,3337.4,0.8308154]
[1734949925140,3.0,3337.7,3337.4,0.8308154]
[1734949925335,3.0,3337.9,3337.4,0.8308154]
[1734949925630,2.99618,3337.6,3337.4,0.8308154]
[1734949925839,3.0,3337.5,3337.4,0.8308154]
[1734949925983,5.99625,3337.5,3337.4,0.8308154]
[1734949926173,5.99625,3337.5,3337.4,0.0082154]
[1734949927874,5.48954282,3337.7,3337.4,0.0082154]
[1734949928319,5.99625,3337.5,3337.4,0.0082154]
[1734949928689,6.54625,3337.5,3337.4,0.0082154]
[1734949929295,9.65817853,3337.5,3337.4,5.4e-06]
[1734949929604,10.45907853,3337.5,3337.4,5.4e-06]
[1734949930209,11.68615429,3337.5,3337.4,5.4e-06]
[1734949930597,10.33525429,3337.5,3337.4,5.4e-06]
[1734949931814,9.7661645,3337.5,3337.4,5.4e-06]
[1734949932712,5.99625,3337.5,3337.4,5.4e-06]
[1734949934225,7.32685,3337.5,3337.4,5.4e-06]
[1734949935126,12.45229882,3337.5,3337.4,5.4e-06]
[1734949935427,2.99652,3337.2,3337.1,5.4e-06]
[1734949935634,6.54652,3337.2,3337.1,5.4e-06]
[1734949936229,7.34652,3337.2,3337.1,5.4e-06]
[1734949937236,10.9469389,3337.2,3337.1,5.4e-06]
[1734949937896,6.54652,3337.2,3337.1,5.4e-06]
[1734949938433,7.32892,3337.2,3337.1,5.4e-06]
[1734949938929,6.54652,3337.2,3337.1,5.4e-06]
[1734949939395,7.34432,3337.2,3337.1,5.4e-06]
[1734949941232,6.54652,3337.2,3337.1,5.4e-06]
[1734949942239,5.99652,3337.2,3337.1,5.4e-06]
[1734949944324,3.0,3337.2,3337.1,5.4e-06]
[1734949944518,3.0,3337.2,3337.1,0.8217054]
[1734949947453,6.14192169,3337.2,3337.1,0.8217054]
[1734949948459,6.14192169,3337.2,3337.1,5.4e-06]
[1734949949145,3.0,3337.3,3337.1,5.4e-06]
[1734949949521,0.55,3337.2,3337.1,5.4e-06]
[1734949949857,3.55,3337.2,3337.1,5.4e-06]
[1734949950056,3.55,3337.3,3337.1,5.4e-06]
[1734949950258,0.55,3337.2,3337.1,5.4e-06]
[1734949950763,6.54652,3337.2,3337.1,5.4e-06]
[1734949950917,6.77058227,3337.2,3337.1,5.4e-06]
[1734949951755,3.0,3337.2,3337.1,5.4e-06]
[1734949951965,3.0,3337.3,3337.1,5.4e-06]
[1734949952363,5.99644,3337.3,3337.1,5.4e-06]
[1734949952857,3.0,3337.3,3337.1,5.4e-06]
[1734949953864,5.99647,3337.3,3337.1,5.4e-06]
[1734949954169,3.77058227,3337.4,3337.2,0.8308]
[1734949955977,2.51432229,3337.9,3337.2,0.8308]
[1734949957080,2.99598,3337.8,3337.2,0.8308]
[1734949957266,2.51432229,3337.9,3337.2,0.8308]
[1734949957942,2.51432229,3337.8,3337.2,0.8308]
[1734949958139,2.99643,3337.3,3337.2,0.8308]
[1734949959677,3.0,3337.3,3337.1,5.4e-06]
[1734949959868,5.99652,3337.2,3337.1,5.4e-06]
[1734949963969,9.13768878,3337.2,3337.1,5.4e-06]
[1734949964361,9.68768878,3337.2,3337.1,5.4e-06]
[1734949964760,10.45548878,3337.2,3337.1,5.4e-06]
[1734949965644,7.31432,3337.2,3337.1,5.4e-06]
[1734949966676,11.71426796,3337.2,3337.1,5.4e-06]
[1734949967803,7.90415984,3337.2,3337.1,5.4e-06]
[1734949969589,12.30103439,3337.2,3337.1,5.4e-06]
[1734949972088,7.90415984,3337.2,3337.1,5.4e-06]
[1734949973197,3.54652,3337.2,3337.1,5.4e-06]
[1734949974088,7.31346298,3337.2,3337.1,5.4e-06]
[1734949974290,10.31346298,3337.2,3337.1,5.4e-06]
[1734949978703,6.54652,3337.2,3337.1,5.4e-06]
[1734949980011,5.99652,3337.2,3337.1,5.4e-06]
[1734949980211,2.99652,3337.2,3337.1,5.4e-06]
[1734949981817,3.54652,3337.2,3337.1,5.4e-06]
[1734949982180,6.05737103,3337.2,3337.1,5.4e-06]
[1734949982511,8.50737103,3337.2,3337.1,5.4e-06]
[1734949983083,5.99652,3337.2,3337.1,5.4e-06]
[1734949983814,2.99652,3337.2,3337.1,0.7982054]
[1734949983986,6.13527928,3337.2,3337.1,0.7982054]
[1734949984188,3.13875928,3337.2,3337.1,0.7982054]
[1734949984593,6.13527928,3337.2,3337.1,5.4e-06]
[1734949984817,2.99652,3337.2,3337.1,5.4e-06]
[1734949985329,2.99652,3337.2,3337.1,0.7606054]
[1734949985690,5.50706605,3337.4,3337.1,0.7606054]
[1734949986259,2.99652,3337.2,3337.1,0.7606054]
[1734949987989,2.51071605,3337.4,3337.1,0.7606054]
[1734949988191,5.50712605,3337.4,3337.1,0.7606054]
[1734949988587,2.51071605,3337.4,3337.1,0.7606054]
[1734949989222,2.51071605,3337.6,3337.2,0.7904]
[1734949989928,5.50687605,3337.6,3337.2,0.7904]
[1734949990444,2.99616,3337.6,3337.2,0.7904]
[1734949990791,2.51071605,3337.8,3337.4,2.99632]
[1734949991105,2.51071605,3337.8,3337.7,3.80017]
[1734949991308,2.51071605,3337.8,3337.7,3.77207]
[1734949991929,2.51071605,3337.8,3337.7,0.776]
[1734949992114,2.99555,3338.3,3337.7,0.776]
[1734949992503,5.99508,3338.8,3337.7,0.776]
[1734949992713,2.99588,3338.0,3337.7,0.776]
[1734949992914,2.99598,3337.8,3337.7,0.776]
[1734949993115,2.99643,3337.3,3337.2,0.7868]
[1734949993318,2.99627,3337.5,3337.2,0.7868]
[1734949993525,2.99609,3337.7,3337.2,0.7868]
[1734949993708,2.99597,3337.9,3337.2,0.7868]
[1734949993911,5.50644605,3338.1,3337.2,0.7868]
[1734949994234,2.51071605,3338.1,3337.2,0.7868]
[1734949994441,2.51071605,3338.1,3337.5,2.99624]
[1734949994643,2.51071605,3338.3,3337.6,0.7868]
[1734949995539,2.99506,3338.9,3337.6,0.7868]
[1734949995540,2.99562,3338.2,3337.6,0.7868]
[1734949995739,2.99545,3338.4,3337.6,0.7868]
[1734949997420,2.9957,3338.2,3337.6,0.7868]
[1734949997830,3.0,3338.3,3337.6,0.7868]
[1734949998036,2.99566,3338.2,3337.6,0.7868]
[1734949998539,3.0,3338.7,3337.6,0.7868]
[1734949998540,2.99539,3338.5,3337.6,0.7868]
[1734949998841,5.51071605,3338.7,3337.6,0.7868]
[1734949999038,2.9956,3338.3,3337.6,0.7868]
[1734949999214,5.51071605,3338.7,3337.6,0.7868]
[1734949999215,3.0,3338.7,3337.6,0.7868]
[1734949999418,2.99538,3338.5,3337.6,0.7868]
[1734950000345,2.99526,3338.7,3337.7,0.7997]
[1734950000519,2.99534,3338.6,3337.7,0.7997]
[1734950001441,2.99535,3338.5,3337.7,0.7997]
[1734950001642,2.99548,3338.4,3337.7,0.7997]
[1734950002755,2.99535,3338.5,3337.7,0.7997]
[1734950003116,3.0,3338.9,3337.7,0.7997]
[1734950003117,2.99598,3337.8,3337.7,0.7997]
[1734950003521,2.99598,3337.8,3337.2,0.7581]
[1734950003750,2.99626,3337.5,3337.2,0.7581]
[1734950004269,2.99643,3337.3,3337.2,0.7581]
[1734950005431,2.99652,3337.2,3337.1,5.4e-06]
[1734950007913,5.99652,3337.2,3337.1,5.4e-06]
[1734950009351,6.54652,3337.2,3337.1,5.4e-06]
[1734950011906,9.05723605,3337.2,3337.1,5.4e-06]
[1734950012212,2.51071605,3337.2,3337.1,5.4e-06]
[1734950012413,2.51071605,3337.2,3337.1,0.8260054]
[1734950014082,2.9959,3337.9,3337.1,0.8260054]
[1734950014259,3.0,3338.1,3337.1,0.8260054]
[1734950014464,5.99564,3338.2,3337.2,0.7677]
[1734950014823,2.99573,3338.1,3337.2,0.7677]
[1734950015580,5.50626605,3338.3,3337.2,3.02639174]
[1734950015870,2.99548,3338.4,3337.4,0.8034]
[1734950016270,3.0,3338.3,3337.4,0.8034]
[1734950017374,2.99548,3338.4,3337.4,0.8034]
[1734950017570,2.51071605,3338.6,3337.2,0.7792]
[1734950017775,3.0,3338.5,3337.7,0.7792]
[1734950018000,5.99544,3338.5,3337.7,0.7792]
[1734950018899,5.99517,3338.7,3337.7,0.7792]
[1734950019600,2.51071605,3338.8,3337.8,0.7792]
[1734950019787,5.50580605,3338.8,3337.8,0.7792]
[1734950020303,2.99509,3338.8,3337.8,0.7792]
[1734950021906,3.0,3339.0,3337.8,0.7792]
[1734950022219,2.99546,3338.4,3337.8,0.7792]
[1734950022414,2.99555,3338.3,3337.8,0.7792]
[1734950023306,2.99535,3338.5,3337.8,0.7792]
[1734950023525,2.99553,3338.3,3337.8,0.7792]
[1734950023690,3.0,3338.6,3337.8,0.7792]
[1734950024220,2.99549,3338.4,3337.8,0.7792]
[1734950024540,2.99601,3337.8,3337.2,0.8211]
[1734950025736,2.99582,3338.0,3337.2,0.8211]
[1734950026061,5.50636605,3338.2,3337.4,0.7857]
[1734950026756,2.99573,3338.1,3337.4,0.7857]
[1734950027353,2.51071605,3338.2,3337.4,0.7857]
[1734950027517,2.99557,3338.3,3337.4,0.7857]
[1734950029648,2.51071605,3338.5,3337.4,0.7857]
[1734950029839,2.51071605,3338.5,3337.7,0.7965]
[1734950030537,2.99593,3337.9,3337.7,0.7965]
[1734950030726,0.807,3338.4,3337.1,5.4e-06]
[1734950030727,2.99603,3337.8,3337.2,0.7677]
[1734950030930,2.99633,3337.5,3337.2,0.7677]
[1734950031138,2.99652,3337.2,3337.1,5.4e-06]
[1734950031952,5.99652,3337.2,3337.1,5.4e-06]
[1734950032353,2.99652,3337.2,3337.1,5.4e-06]
[1734950033554,5.99652,3337.2,3337.1,5.4e-06]
[1734950034547,8.50723605,3337.2,3337.1,5.4e-06]
[1734950035430,9.32563605,3337.2,3337.1,5.4e-06]
[1734950036128,6.81492,3337.2,3337.1,5.4e-06]
[1734950037086,5.99652,3337.2,3337.1,5.4e-06]
[1734950038653,5.98808351,3337.2,3337.1,5.4e-06]
[1734950038859,2.50431316,3337.3,3337.1,5.4e-06]
[1734950039056,2.50431316,3337.3,3337.2,0.7622]
[1734950039779,2.99652,3337.2,3337.1,5.4e-06]
[1734950040835,2.99629,3337.5,3337.1,5.4e-06]
[1734950040836,2.99643,3337.3,3337.1,5.4e-06]
[1734950041746,5.50431316,3337.8,3337.2,0.8169]
[1734950042076,2.99643,3337.3,3337.1,5.4e-06]
[1734950042376,2.99652,3337.2,3337.1,5.4e-06]
[1734950042549,5.99652,3337.2,3337.1,5.4e-06]
[1734950043894,2.99652,3337.2,3337.1,5.4e-06]
[1734950045065,5.99652,3337.2,3337.1,5.4e-06]
[1734950047969,6.76682,3337.2,3337.1,5.4e-06]
[1734950048598,2.50431316,3337.3,3337.1,0.8244054]
[1734950050382,2.99625,3337.5,3337.1,0.8244054]
[1734950050567,3.0,3337.8,3337.1,0.8244054]
[1734950050893,2.50431316,3337.9,3337.2,0.7797]
[1734950051461,2.50431316,3337.9,3337.3,3.77604]
[1734950051660,2.50431316,3338.3,3337.4,0.7596]
[1734950051991,2.50431316,3338.3,3337.5,0.7596]
[1734950052660,2.99537,3338.5,3337.5,0.7596]
[1734950053061,2.99545,3338.4,3337.5,0.7596]
[1734950053603,2.99527,3338.6,3337.5,3.75585]
[1734950053781,2.50431316,3338.8,3337.6,0.8311]
[1734950053782,2.9955,3338.4,3337.6,0.8311]
[1734950054181,5.49943316,3338.8,3337.6,0.8311]
[1734950054182,2.99517,3338.7,3337.6,0.8311]
[1734950054373,2.99543,3338.5,3337.6,0.8311]
[1734950055603,5.50431316,3338.7,3337.6,0.8311]
[1734950055604,8.49951316,3338.7,3337.6,2.9961]
[1734950055803,0.8138,3337.7,3337.1,5.4e-06]
[1734950055967,5.99652,3337.2,3337.1,5.4e-06]
[1734950056167,2.99642,3337.4,3337.1,5.4e-06]
[1734950056363,3.0,3337.4,3337.1,5.4e-06]
[1734950056601,3.0,3337.4,3337.2,0.7994]
[1734950056800,2.99643,3337.3,3337.2,0.7994]
[1734950056967,2.99652,3337.2,3337.1,5.4e-06]
[1734950058866,2.99652,3337.2,3335.3,3.0]
[1734950058867,0.7591,3336.6,3335.3,0.7864]
[1734950059074,0.7591,3336.9,3335.3,0.7864]
[1734950059263,2.99755,3336.1,3335.3,0.7864]
[1734950059468,2.99733,3336.3,3335.3,0.7864]
[1734950059670,2.99745,3336.2,3335.3,0.7864]
[1734950059902,3.0,3336.6,3335.3,3.78462]
[1734950060091,3.0,3336.9,3335.4,0.7906]
[1734950060286,3.0,3336.5,3335.4,0.7906]
[1734950060701,2.50431316,3336.5,3335.4,0.7906]
[1734950061227,2.99725,3336.4,3335.4,0.7906]
[1734950063022,2.99727,3336.4,3335.4,0.7906]
[1734950063421,3.0,3336.7,3335.4,0.7906]
[1734950063627,2.99725,3336.4,3335.4,0.7906]
[1734950064006,3.0,3336.8,3335.4,0.7906]
[1734950064211,2.99707,3336.6,3335.5,0.7761]
[1734950064726,2.50431316,3336.9,3335.5,0.7761]
[1734950064727,2.9972,3336.5,3335.5,0.7761]
[1734950064929,2.9972,3336.5,3335.4,0.7761]
[1734950065734,2.50431316,3337.0,3335.5,0.7761]
[1734950065924,2.997,3336.7,3335.5,0.7761]
[1734950066138,2.99706,3336.6,3335.5,0.7761]
[1734950067644,2.99706,3336.6,3335.6,0.7761]
[1734950068003,3.0,3336.9,3335.6,0.7761]
[1734950068223,2.9969,3336.8,3335.6,0.7761]
[1734950068427,2.99697,3336.7,3335.6,0.7761]
[1734950068650,3.0,3336.9,3335.6,0.7761]
[1734950068800,2.99732,3336.4,3335.6,0.7761]
[1734950069004,3.0,3336.9,3335.6,0.7761]
[1734950069201,2.99688,3336.8,3335.7,3.02783302]
[1734950069412,2.50431316,3336.6,3335.8,0.7691]
[1734950070345,2.99708,3336.6,3335.8,0.7191]
[1734950070501,2.99716,3336.5,3335.8,0.7191]
[1734950071244,2.99697,3336.7,3335.8,0.7191]
[1734950071551,5.50431316,3336.9,3335.8,0.7191]
[1734950071842,2.99706,3336.6,3335.8,0.7191]
[1734950074947,2.99717,3336.5,3335.8,0.7191]
[1734950075312,5.50431316,3336.9,3335.8,0.7191]
[1734950075511,2.99734,3336.3,3335.8,0.7191]
[1734950076346,2.99718,3336.5,3335.8,0.7191]
[1734950077052,3.13875928,3336.7,3335.9,0.8111]